[Event "Schachfestival GM 2018"]
[Site "Lueneburg"]
[Date "2018.07.07"]
[Round "3"]
[White "Mirzoev, Azer"]
[Black "Kuberczyk, Christoph"]
[Result "1-0"]
[ECO "D45"]
[WhiteElo "2506"]
[BlackElo "2225"]
[Annotator "ChessBase"]
[PlyCount "107"]
[EventDate "2018.07.05"]
[EventType "tourn"]
[EventCountry "GER"]
[SourceTitle "playchess.com"]
[Source "ChessBase"]
[SourceQuality "1"]
[TimeControl "40/5400+30:1800+30"]

1. d4 {[%emt 0:01:13]} d5 {[%emt 0:00:19]} 2. c4 {[%emt 0:00:21]} e6 {[%emt 0:00:08]} 3. Nc3 {[%emt 0:00:02]} c6 {[%emt 0:00:14]} 4. e3 {[%emt 0:00:14]} Nf6 {[%emt 0:00:25]} 5. Nf3 {[%emt 0:00:15]} Nbd7 {[%emt 0:00:16]} 6. b3 {[%emt 0:00:12]} Bb4 {[%emt 0:00:42]} 7. Bd2 {[%emt 0:03:02]} O-O {[%emt 0:00:21]} 8. Be2 {[%emt 0:00:12]} Qe7 {[%emt 0:06:59]} 9. O-O {[%emt 0:04:51]} Rd8 {[%emt 0:17:00]} 10. Qc2 {[%emt 0:03:54]} dxc4 {[%emt 0:20:40]} 11. bxc4 {[%emt 0:01:57]} e5 {[%emt 0:04:58]} 12. h3 {[%emt 0:02:27]} h6 {[%emt 0:01:56]} 13. Rfe1 {[%emt 0:08:21]} Bd6 {[%emt 0:02:37]} 14. Bd3 {[%emt 0:24:43]} Re8 {[%emt 0:02:23]} 15. Nh4 {[%emt 0:02:21]} Qd8 {[%emt 0:02:36]} 16. Nf5 {[%emt 0:00:34]} Bf8 {[%emt 0:00:14]} 17. Rad1 {[%emt 0:01:37]} g6 {[%emt 0:05:23]} 18. Ng3 {[%emt 0:00:04]} exd4 {[%emt 0:00:33]} 19. exd4 {[%emt 0:00:08]} Rxe1+ {[%emt 0:00:40]} 20. Rxe1 {[%emt 0:01:46]} Bg7 {[%emt 0:01:13]} 21. Rd1 {[%emt 0:00:16]} Nb6 {[%emt 0:01:33]} 22. Be3 {[%emt 0:00:56]} Be6 {[%emt 0:07:33]} 23. Nce2 {[%emt 0:00:27]} Qc7 {[%emt 0:02:46]} 24. Nf4 {[%emt 0:04:46]} Bd7 {[%emt 0:00:17]} 25. Qc1 {[%emt 0:03:00]} Be8 {[%emt 0:04:25]} 26. Nfe2 {[%emt 0:07:36]} Kh7 {[%emt 0:02:13]} 27. Nf1 {[%emt 0:02:35]} Rd8 {[%emt 0:03:06]} 28. Nh2 {[%emt 0:00:09]} Nbd7 {[%emt 0:01:54]} 29. Nf3 {[%emt 0:01:13]} Qa5 {[%emt 0:04:32]} 30. Qb1 {[%emt 0:01:00]} Qb6 {[%emt 0:05:31]} 31. Qc2 {[%emt 0:00:26]} Qa5 {[%emt 0:00:56]} 32. Rb1 {[%emt 0:00:20]} b6 {[%emt 0:00:49]} 33. Bd2 {[%emt 0:02:30]} Qa3 34. Bb4 {[%emt 0:04:42]} Qa6 {[%emt 0:00:04]} 35. Be7 {[%emt 0:00:55]} Rc8 {[%emt 0:00:10]} 36. Ng3 {[%emt 0:00:53]} Qb7 {[%emt 0:01:49]} 37. Bd6 {[%emt 0:02:57]} Rd8 {[%emt 0:00:40]} 38. h4 {[%emt 0:00:28]} Nf8 {[%emt 0:00:25]} 39. c5 {[%emt 0:03:14]} Nd5 {[%emt 0:00:35]} 40. h5 {[%emt 0:00:14]} Qc8 {[%emt 0:00:31]} 41. Ne5 {[%emt 0:31:13]} Nf4 {[%emt 0:09:19]} 42. Nxg6 {[%emt 0:00:00]} fxg6 {[%emt 0:04:53]} 43. Bxf4 {[%emt 0:00:00]} Bxd4 {[%emt 0:01:59]} 44. cxb6 {[%emt 0:00:00]} axb6 {[%emt 0:00:26]} 45. Re1 {[%emt 0:00:00]} Qd7 {[%emt 0:01:54]} 46. Ne4 {[%emt 0:00:00]} Bf7 {[%emt 0:05:15]} 47. Nd6 {[%emt 0:10:07]} Kg7 {[%emt 0:00:57]} 48. hxg6 {[%emt 0:00:35]} Bxg6 {[%emt 0:03:22]} 49. Bf5 {[%emt 0:00:44]} c5 {[%emt 0:02:46]} 50. Bxh6+ {[%emt 0:01:23]} Kh8 {[%emt 0:01:29]} 51. Bxd7 {[%emt 0:01:22]} Bxc2 {[%emt 0:00:10]} 52. Nf7+ {[%emt 0:00:03]} Kh7 {[%emt 0:00:51]} 53. Nxd8 {[%emt 0:00:09]} Kxh6 {[%emt 0:00:10]} 54. Bb5 {[%emt 0:00:17]} 1-0

[Event "Schachfestival GM 2018"]
[Site "Lueneburg"]
[Date "2018.07.07"]
[Round "3"]
[White "Reuker, Jari"]
[Black "Lubbe, Nikolas"]
[Result "1-0"]
[ECO "C95"]
[WhiteElo "2377"]
[BlackElo "2463"]
[Annotator "ChessBase"]
[PlyCount "147"]
[EventDate "2018.07.05"]
[EventType "tourn"]
[EventCountry "GER"]
[SourceTitle "playchess.com"]
[Source "ChessBase"]
[SourceQuality "1"]
[TimeControl "40/5400+30:1800+30"]

1. e4 {[%emt 0:00:00]} e5 {[%emt 0:00:00]} 2. Nf3 {[%emt 0:00:00]} Nc6 {[%emt 0:00:00]} 3. Bb5 {[%emt 0:00:15]} a6 {[%emt 0:00:23]} 4. Ba4 {[%emt 0:00:06]} Nf6 {[%emt 0:00:23]} 5. O-O {[%emt 0:00:10]} Be7 {[%emt 0:01:03]} 6. Re1 {[%emt 0:00:38]} b5 {[%emt 0:00:40]} 7. Bb3 {[%emt 0:00:06]} d6 {[%emt 0:00:19]} 8. c3 {[%emt 0:00:19]} O-O {[%emt 0:00:20]} 9. h3 {[%emt 0:00:22]} Nb8 {[%emt 0:00:36]} 10. d4 {[%emt 0:00:14]} Nbd7 {[%emt 0:00:15]} 11. Nbd2 {[%emt 0:00:16]} Bb7 {[%emt 0:00:25]} 12. Bc2 {[%emt 0:00:25]} Re8 {[%emt 0:00:28]} 13. Nf1 {[%emt 0:00:18]} Bf8 {[%emt 0:00:21]} 14. Ng3 {[%emt 0:00:10]} g6 {[%emt 0:01:08]} 15. a4 {[%emt 0:00:16]} c5 {[%emt 0:03:17]} 16. d5 {[%emt 0:06:48]} c4 {[%emt 0:00:43]} 17. Bg5 {[%emt 0:00:19]} Nc5 {[%emt 0:02:03]} 18. Qd2 {[%emt 0:10:20]} Be7 {[%emt 0:00:25]} 19. Ra3 {[%emt 0:07:20]} Nfd7 {[%emt 0:05:16]} 20. Be3 {[%emt 0:07:20]} Qc7 {[%emt 0:05:25]} 21. Qe2 {[%emt 0:14:11]} Nb6 {[%emt 0:06:00]} 22. axb5 {[%emt 0:12:12]} axb5 {[%emt 0:00:11]} 23. Rxa8 {[%emt 0:00:54]} Rxa8 {[%emt 0:01:42]} 24. Nh2 {[%emt 0:01:14]} Ra2 {[%emt 0:13:56]} 25. Bb1 {[%emt 0:04:35]} Ra1 {[%emt 0:06:25]} 26. Ng4 {[%emt 0:01:12]} Bc8 {[%emt 0:05:09]} 27. Nh6+ {[%emt 0:04:46]} Kf8 {[%emt 0:08:48]} 28. Rf1 {[%emt 0:02:41]} Bh4 {[%emt 0:08:20]} 29. Kh2 {[%emt 0:05:13]} Qe7 {[%emt 0:07:12]} 30. b4 {[%emt 0:07:27]} Nca4 {[%emt 0:06:28]} 31. Qd2 {[%emt 0:01:39]} Kg7 {[%emt 0:07:28]} 32. Ne2 {[%emt 0:07:04]} Qd7 {[%emt 0:04:22]} 33. f4 {[%emt 0:02:42]} Rxb1 {[%emt 0:02:48]} 34. Rxb1 {[%emt 0:00:36]} Kxh6 {[%emt 0:01:04]} 35. fxe5+ {[%emt 0:00:14]} Kg7 {[%emt 0:00:01]} 36. Bh6+ {[%emt 0:01:34]} Kg8 {[%emt 0:00:46]} 37. Qf4 {[%emt 0:00:49]} Qe7 {[%emt 0:01:14]} 38. g3 {[%emt 0:01:58]} dxe5 {[%emt 0:02:22]} 39. Qxh4 {[%emt 0:00:15]} Qxh4 {[%emt 0:00:17]} 40. gxh4 {[%emt 0:00:06]} f5 {[%emt 0:00:09]} 41. Rf1 {[%emt 0:04:17]} Kf7 {[%emt 0:02:18]} 42. Be3 {[%emt 0:04:13]} f4 {[%emt 0:03:36]} 43. Bd2 {[%emt 0:05:26]} Bd7 {[%emt 0:04:08]} 44. Ng1 {[%emt 0:02:10]} Kf6 {[%emt 0:01:22]} 45. Nf3 {[%emt 0:00:28]} Nc8 {[%emt 0:01:50]} 46. Re1 {[%emt 0:04:03]} h6 {[%emt 0:01:14]} 47. Kg2 {[%emt 0:01:00]} Be8 {[%emt 0:00:52]} 48. Nh2 {[%emt 0:00:54]} Bd7 {[%emt 0:02:32]} 49. Ng4+ {[%emt 0:01:40]} Bxg4 {[%emt 0:00:06]} 50. hxg4 {[%emt 0:00:05]} Ke7 {[%emt 0:00:45]} 51. Kf3 {[%emt 0:00:42]} Kd6 {[%emt 0:01:22]} 52. Ra1 {[%emt 0:01:55]} Ncb6 {[%emt 0:02:28]} 53. Be1 {[%emt 0:00:54]} Nc8 {[%emt 0:00:43]} 54. Ra3 {[%emt 0:01:06]} Ncb6 {[%emt 0:01:47]} 55. Bf2 {[%emt 0:00:50]} Nd7 {[%emt 0:00:12]} 56. Ba7 {[%emt 0:02:28]} Kc7 {[%emt 0:01:17]} 57. g5 {[%emt 0:00:47]} h5 {[%emt 0:00:07]} 58. Bc5 {[%emt 0:02:56]} Kb7 {[%emt 0:01:52]} 59. Bd6 {[%emt 0:02:03]} Kc8 {[%emt 0:01:24]} 60. Ke2 {[%emt 0:00:37]} Kb7 {[%emt 0:00:15]} 61. Kd2 {[%emt 0:00:17]} Kc8 {[%emt 0:01:27]} 62. Kc2 {[%emt 0:00:14]} Kb7 {[%emt 0:00:30]} 63. Ra1 {[%emt 0:00:08]} Kc8 {[%emt 0:00:47]} 64. Rf1 {[%emt 0:00:18]} Nab6 {[%emt 0:00:21]} 65. Rd1 {[%emt 0:01:46]} Kb7 {[%emt 0:00:33]} 66. Bc5 {[%emt 0:01:23]} Na4 {[%emt 0:00:26]} 67. Be7 {[%emt 0:00:32]} Kc7 {[%emt 0:01:24]} 68. d6+ {[%emt 0:01:05]} Kc6 {[%emt 0:00:31]} 69. Bd8 {[%emt 0:00:19]} Kb7 {[%emt 0:02:56]} 70. Rd5 {[%emt 0:00:21]} Kc6 {[%emt 0:00:04]} 71. Bc7 {[%emt 0:01:02]} Nab6 {[%emt 0:02:05]} 72. Bxb6 {[%emt 0:00:28]} Kxb6 {[%emt 0:00:01]} 73. Rd1 {[%emt 0:00:18]} Kc6 {[%emt 0:00:15]} 74. Ra1 {[%emt 0:00:25] Kd5} 1-0

[Event "Schachfestival GM 2018"]
[Site "Lueneburg"]
[Date "2018.07.07"]
[Round "3"]
[White "Winterberg, Lukas"]
[Black "Vorobiov, Evgeny E"]
[Result "0-1"]
[ECO "E11"]
[WhiteElo "2372"]
[BlackElo "2564"]
[Annotator "ChessBase"]
[PlyCount "106"]
[EventDate "2018.07.05"]
[EventType "tourn"]
[EventCountry "GER"]
[SourceTitle "playchess.com"]
[Source "ChessBase"]
[SourceQuality "1"]
[TimeControl "40/5400+30:1800+30"]

1. d4 {[%emt 0:00:00]} Nf6 {[%emt 0:00:00]} 2. c4 {[%emt 0:00:00]} e6 {[%emt 0:00:21]} 3. Nf3 {[%emt 0:00:04]} Bb4+ {[%emt 0:00:39]} 4. Nbd2 {[%emt 0:02:59]} O-O {[%emt 0:00:32]} 5. g3 {[%emt 0:00:57]} d5 {[%emt 0:05:20]} 6. c5 {[%emt 0:02:34]} b6 {[%emt 0:05:19]} 7. a3 {[%emt 0:01:04]} Bxd2+ {[%emt 0:00:11]} 8. Bxd2 {[%emt 0:00:41]} bxc5 {[%emt 0:04:02]} 9. dxc5 {[%emt 0:00:13]} a5 {[%emt 0:00:53]} 10. b4 {[%emt 0:11:39]} axb4 {[%emt 0:06:39]} 11. axb4 {[%emt 0:00:41]} Rxa1 {[%emt 0:00:16]} 12. Qxa1 {[%emt 0:00:02]} Ne4 {[%emt 0:01:05]} 13. Bg2 {[%emt 0:05:22]} Ba6 {[%emt 0:06:12]} 14. Nd4 {[%emt 0:07:57]} Bc4 {[%emt 0:17:22]} 15. Qc1 {[%emt 0:23:43]} Nxd2 {[%emt 0:05:10]} 16. Qxd2 {[%emt 0:00:43]} Qd7 {[%emt 0:04:48]} 17. O-O {[%emt 0:00:30]} Qa4 {[%emt 0:06:06]} 18. Qb2 {[%emt 0:03:58]} Nc6 {[%emt 0:03:51]} 19. Nxc6 {[%emt 0:03:46]} Qxc6 {[%emt 0:00:06]} 20. Rb1 {[%emt 0:01:17]} Rb8 {[%emt 0:07:10]} 21. h4 {[%emt 0:09:57]} h6 {[%emt 0:00:56]} 22. Qd2 {[%emt 0:02:21]} Qa4 {[%emt 0:03:42]} 23. e4 {[%emt 0:00:48]} c6 {[%emt 0:01:35]} 24. exd5 {[%emt 0:01:41]} exd5 {[%emt 0:00:42]} 25. Qc3 {[%emt 0:04:36]} Qa8 {[%emt 0:04:12]} 26. Bf1 {[%emt 0:01:38]} Bxf1 {[%emt 0:00:34]} 27. Kxf1 {[%emt 0:00:25]} Re8 {[%emt 0:05:36]} 28. Re1 {[%emt 0:02:19]} Qa6+ {[%emt 0:00:55]} 29. Kg2 {[%emt 0:00:18]} Re2 {[%emt 0:04:00]} 30. Ra1 {[%emt 0:03:38]} Qc8 {[%emt 0:00:51]} 31. Re1 {[%emt 0:05:23]} d4 {[%emt 0:03:10]} 32. Qa1 {[%emt 0:00:02]} d3 {[%emt 0:00:34]} 33. Rxe2 {[%emt 0:01:04]} dxe2 {[%emt 0:00:04]} 34. f3 {[%emt 0:02:44]} Qd7 {[%emt 0:02:03]} 35. Qe1 {[%emt 0:00:18]} Qd3 {[%emt 0:01:01]} 36. Kf2 {[%emt 0:00:13]} Kf8 {[%emt 0:00:17]} 37. Qxe2 {[%emt 0:00:58]} Qd4+ {[%emt 0:00:03]} 38. Kg2 {[%emt 0:00:08]} Qxb4 {[%emt 0:00:13]} 39. Qd3 {[%emt 0:00:41]} Qb2+ {[%emt 0:01:20]} 40. Kh3 {[%emt 0:00:19]} Qf6 {[%emt 0:00:23]} 41. Kg2 {[%emt 0:30:25]} Ke7 {[%emt 0:31:42]} 42. f4 {[%emt 0:00:00]} Qe6 {[%emt 0:00:00]} 43. Kf2 {[%emt 0:00:00]} h5 {[%emt 0:00:00]} 44. Qa6 {[%emt 0:00:00]} g6 {[%emt 0:00:00]} 45. Qb7+ {[%emt 0:00:00]} Qd7 {[%emt 0:00:00]} 46. Qb4 {[%emt 0:00:00]} Qd5 {[%emt 0:00:00]} 47. Qe1+ {[%emt 0:00:00]} Kf6 {[%emt 0:00:00]} 48. Qc3+ {[%emt 0:00:00]} Ke6 {[%emt 0:00:00]} 49. Qe3+ {[%emt 0:00:00]} Kf5 {[%emt 0:00:00]} 50. Qe7 {[%emt 0:00:00]} Qd2+ {[%emt 0:00:00]} 51. Kf3 {[%emt 0:00:00]} Qd3+ {[%emt 0:00:00]} 52. Kf2 {[%emt 0:00:00]} Kg4 {[%emt 0:00:00]} 53. Qxf7 {[%emt 0:00:00]} Qc2+ {[%emt 0:00:00]} 0-1

[Event "Schachfestival GM 2018"]
[Site "Lueneburg"]
[Date "2018.07.07"]
[Round "3"]
[White "Wachinger, Nikolas"]
[Black "Malakhatko, Vadim"]
[Result "1/2-1/2"]
[ECO "C07"]
[WhiteElo "2340"]
[BlackElo "2499"]
[Annotator "ChessBase"]
[PlyCount "118"]
[EventDate "2018.07.05"]
[EventType "tourn"]
[EventCountry "GER"]
[SourceTitle "playchess.com"]
[Source "ChessBase"]
[SourceQuality "1"]
[TimeControl "40/5400+30:1800+30"]

1. e4 {[%emt 0:00:00]} e6 {[%emt 0:00:14]} 2. d4 {[%emt 0:00:00]} d5 {[%emt 0:00:06]} 3. Nd2 {[%emt 0:00:00]} c5 {[%emt 0:00:05]} 4. exd5 {[%emt 0:00:06]} Qxd5 {[%emt 0:00:06]} 5. Ngf3 {[%emt 0:00:11]} cxd4 {[%emt 0:00:07]} 6. Bc4 {[%emt 0:00:07]} Qd8 {[%emt 0:00:06]} 7. O-O {[%emt 0:00:10]} Nc6 {[%emt 0:00:09]} 8. Nb3 {[%emt 0:00:08]} a6 {[%emt 0:00:05]} 9. Bf4 {[%emt 0:01:07]} Bd6 {[%emt 0:03:14]} 10. Bxd6 {[%emt 0:01:05]} Qxd6 {[%emt 0:00:06]} 11. Nbxd4 {[%emt 0:00:21]} Nxd4 {[%emt 0:00:10]} 12. Qxd4 {[%emt 0:01:52]} Qxd4 {[%emt 0:00:07]} 13. Nxd4 {[%emt 0:00:05]} Bd7 {[%emt 0:00:53]} 14. f4 {[%emt 0:06:59]} Rc8 {[%emt 0:02:35]} 15. Bb3 {[%emt 0:01:10]} Ne7 {[%emt 0:00:30]} 16. Rad1 {[%emt 0:05:48]} g6 {[%emt 0:04:26]} 17. Nf3 {[%emt 0:04:09]} Nc6 {[%emt 0:02:28]} 18. Ng5 {[%emt 0:10:55]} Rc7 {[%emt 0:05:40]} 19. Rd6 {[%emt 0:09:10]} h6 {[%emt 0:01:03]} 20. Ne4 {[%emt 0:01:26]} Ke7 {[%emt 0:00:06]} 21. Rfd1 {[%emt 0:00:24]} Na5 {[%emt 0:02:21]} 22. c3 {[%emt 0:09:10]} Bc6 {[%emt 0:02:44]} 23. R6d4 {[%emt 0:01:34]} g5 {[%emt 0:19:43]} 24. Nd6 {[%emt 0:22:29]} gxf4 {[%emt 0:15:49]} 25. Rxf4 {[%emt 0:00:08]} Rh7 {[%emt 0:00:03]} 26. Bc2 {[%emt 0:05:48]} Rg7 {[%emt 0:02:22]} 27. g3 {[%emt 0:00:58]} b5 {[%emt 0:03:08]} 28. a4 {[%emt 0:04:48]} Nb7 {[%emt 0:15:35]} 29. Nxb7 {[%emt 0:03:18]} Rxb7 {[%emt 0:00:09]} 30. axb5 {[%emt 0:00:15]} axb5 {[%emt 0:00:11]} 31. Be4 {[%emt 0:01:18]} Bxe4 {[%emt 0:00:19]} 32. Rxe4 {[%emt 0:00:02]} Rg5 {[%emt 0:00:08]} 33. Rb4 {[%emt 0:00:35]} Rc7 {[%emt 0:00:43]} 34. Rdd4 {[%emt 0:00:39]} Rcc5 {[%emt 0:02:13]} 35. c4 {[%emt 0:02:30]} bxc4 {[%emt 0:01:55]} 36. Rbxc4 {[%emt 0:00:07]} Rxc4 {[%emt 0:00:35]} 37. Rxc4 {[%emt 0:00:03]} Rd5 {[%emt 0:00:07]} 38. Rh4 {[%emt 0:00:49]} h5 {[%emt 0:01:45]} 39. Kf2 {[%emt 0:00:50]} Kf6 {[%emt 0:00:39]} 40. Ke3 {[%emt 0:00:19]} Kg5 {[%emt 0:00:27]} 41. b4 {[%emt 0:33:31]} e5 {[%emt 0:31:05]} 42. Rc4 {[%emt 0:00:15]} Rd1 {[%emt 0:00:42]} 43. Kf3 {[%emt 0:04:09]} Rd2 {[%emt 0:03:19]} 44. h4+ Kf5 {[%emt 0:00:23]} 45. Ke3 {[%emt 0:01:37]} Rg2 {[%emt 0:01:16]} 46. Kf3 {[%emt 0:00:10]} Rb2 {[%emt 0:00:04]} 47. Ke3 {[%emt 0:00:13]} Rb3+ {[%emt 0:00:06]} 48. Kf2 {[%emt 0:00:06]} f6 {[%emt 0:00:52]} 49. Kg2 {[%emt 0:02:44]} Re3 {[%emt 0:04:33]} 50. Kf2 {[%emt 0:00:00]} Rd3 {[%emt 0:00:00]} 51. Rc8 {[%emt 0:00:00]} Rd4 {[%emt 0:00:00]} 52. Rh8 {[%emt 0:00:00]} Ke4 {[%emt 0:00:00]} 53. Rxh5 {[%emt 0:00:00]} f5 {[%emt 0:00:00]} 54. Rg5 {[%emt 0:00:00]} Rxb4 {[%emt 0:00:00]} 55. h5 {[%emt 0:00:00]} Rb6 {[%emt 0:00:00]} 56. Kg2 {[%emt 0:00:00]} Rb2+ {[%emt 0:00:00]} 57. Kg1 {[%emt 0:00:00]} f4 {[%emt 0:00:00]} 58. gxf4 {[%emt 0:00:00]} Kxf4 {[%emt 0:00:00]} 59. Rg8 {[%emt 0:00:00]} Rb6 {[%emt 0:00:00]} 1/2-1/2

[Event "Schachfestival GM 2018"]
[Site "Lueneburg"]
[Date "2018.07.07"]
[Round "3"]
[White "Ewert, Hannes"]
[Black "Drozdowski, Kacper"]
[Result "0-1"]
[ECO "A41"]
[WhiteElo "2318"]
[BlackElo "2455"]
[Annotator "ChessBase"]
[PlyCount "112"]
[EventDate "2018.07.05"]
[EventType "tourn"]
[EventCountry "GER"]
[SourceTitle "playchess.com"]
[Source "ChessBase"]
[SourceQuality "1"]
[TimeControl "40/5400+30:1800+30"]

1. d4 {[%emt 0:00:00]} d6 {[%emt 0:00:00]} 2. Nf3 {[%emt 0:00:22]} Bg4 {[%emt 0:00:31]} 3. c4 {[%emt 0:00:13]} Bxf3 {[%emt 0:01:07]} 4. exf3 {[%emt 0:00:14]} Nf6 {[%emt 0:01:26]} 5. Nc3 {[%emt 0:00:39]} Nbd7 {[%emt 0:01:15]} 6. Be3 {[%emt 0:01:50]} c6 {[%emt 0:01:58]} 7. f4 {[%emt 0:05:25]} g6 {[%emt 0:06:07]} 8. g3 {[%emt 0:04:41]} Bg7 {[%emt 0:01:22]} 9. Bh3 {[%emt 0:03:25]} e6 {[%emt 0:08:27]} 10. O-O {[%emt 0:14:01]} O-O {[%emt 0:01:00]} 11. Qc2 {[%emt 0:13:52]} Qa5 {[%emt 0:05:28]} 12. Bg2 {[%emt 0:19:04]} Ng4 {[%emt 0:04:39]} 13. Rab1 {[%emt 0:05:59]} Qa6 {[%emt 0:07:36]} 14. Na4 {[%emt 0:03:42]} Rac8 {[%emt 0:02:24]} 15. c5 {[%emt 0:02:44]} b5 {[%emt 0:12:14]} 16. cxb6 {[%emt 0:00:15]} axb6 {[%emt 0:00:12]} 17. Rfc1 {[%emt 0:02:34]} b5 {[%emt 0:07:48]} 18. Nc3 {[%emt 0:00:01]} Nb6 {[%emt 0:00:27]} 19. Qe2 {[%emt 0:03:27]} Nxe3 {[%emt 0:00:12]} 20. fxe3 {[%emt 0:00:05]} Nc4 {[%emt 0:03:22]} 21. a4 {[%emt 0:02:46]} Qb6 {[%emt 0:03:45]} 22. Kh1 {[%emt 0:03:39]} d5 {[%emt 0:00:18]} 23. axb5 {[%emt 0:01:33]} cxb5 {[%emt 0:00:07]} 24. Ra1 {[%emt 0:00:46]} Rc7 {[%emt 0:04:18]} 25. Ra2 {[%emt 0:05:08]} Rfc8 {[%emt 0:04:59]} 26. Rca1 {[%emt 0:00:24]} Bf8 {[%emt 0:00:18]} 27. Bf1 {[%emt 0:04:14]} b4 {[%emt 0:01:02]} 28. Na4 {[%emt 0:00:25]} Qc6 {[%emt 0:04:04]} 29. Qd3 {[%emt 0:01:52]} Ra7 {[%emt 0:02:24]} 30. b3 {[%emt 0:00:27]} Na3 {[%emt 0:00:29]} 31. Qd2 {[%emt 0:00:36]} Rac7 {[%emt 0:00:50]} 32. Bd3 {[%emt 0:00:07]} Qb7 {[%emt 0:01:10]} 33. Qe2 {[%emt 0:00:41]} Rc1+ {[%emt 0:01:13]} 34. Kg2 {[%emt 0:00:03]} Qb8 {[%emt 0:05:48]} 35. Qd2 {[%emt 0:00:44]} R1c6 {[%emt 0:00:51]} 36. Rd1 {[%emt 0:00:45]} Nb5 {[%emt 0:01:10]} 37. Bxb5 {[%emt 0:00:19]} Qxb5 {[%emt 0:00:03]} 38. Kf2 {[%emt 0:00:42]} R8c7 {[%emt 0:00:56]} 39. Qe2 {[%emt 0:00:52]} Qb8 {[%emt 0:00:27]} 40. Qd3 {[%emt 0:00:42]} Qc8 {[%emt 0:00:17]} 41. Ke2 {[%emt 0:09:39]} h5 {[%emt 0:02:51]} 42. Rad2 {[%emt 0:01:27]} Be7 {[%emt 0:01:09]} 43. Kf3 {[%emt 0:00:53]} Kg7 {[%emt 0:00:44]} 44. Kg2 {[%emt 0:02:23]} h4 {[%emt 0:00:24]} 45. Qe2 {[%emt 0:05:40]} Qh8 {[%emt 0:05:13]} 46. Rf1 {[%emt 0:06:07]} Qh7 {[%emt 0:02:59]} 47. e4 {[%emt 0:04:14]} dxe4 {[%emt 0:00:59]} 48. Qxe4 {[%emt 0:00:06]} Rc1 {[%emt 0:02:48]} 49. Nc5 {[%emt 0:02:49]} h3+ {[%emt 0:03:32]} 50. Kf2 {[%emt 0:00:26]} Rxf1+ {[%emt 0:00:52]} 51. Kxf1 {[%emt 0:00:01]} Qh5 {[%emt 0:01:54]} 52. Rc2 {[%emt 0:01:33]} Qd1+ {[%emt 0:01:35]} 53. Kf2 {[%emt 0:00:01]} Ra7 {[%emt 0:00:39]} 54. Qe2 {[%emt 0:01:15]} Qxd4+ {[%emt 0:00:38]} 55. Qe3 {[%emt 0:00:28]} Bxc5 {[%emt 0:00:18]} 56. Rxc5 {[%emt 0:00:03]} Ra2+ {[%emt 0:00:26]} 0-1

[Event "Schachfestival GM 2018"]
[Site "Lueneburg"]
[Date "2018.07.07"]
[Round "3"]
[White "Wenzel, Birger"]
[Black "Simantsev, Mikhail"]
[Result "0-1"]
[ECO "A40"]
[WhiteElo "2084"]
[BlackElo "2434"]
[Annotator "ChessBase"]
[PlyCount "94"]
[EventDate "2018.07.05"]
[EventType "tourn"]
[EventCountry "GER"]
[SourceTitle "playchess.com"]
[Source "ChessBase"]
[SourceQuality "1"]
[TimeControl "40/5400+30:1800+30"]

1. d4 {[%emt 0:00:00]} Nf6 {[%emt 0:08:32]} 2. c4 {[%emt 0:00:00]} e6 {[%emt 0:01:37]} 3. g3 {[%emt 0:00:00]} c5 {[%emt 0:00:53]} 4. Nf3 {[%emt 0:00:00]} cxd4 {[%emt 0:01:45]} 5. Nxd4 {[%emt 0:00:08]} a6 {[%emt 0:00:46]} 6. Bg2 {[%emt 0:01:07]} Qc7 {[%emt 0:06:58]} 7. Nd2 {[%emt 0:01:00]} Be7 {[%emt 0:08:39]} 8. O-O {[%emt 0:03:14]} O-O {[%emt 0:00:29]} 9. b3 {[%emt 0:01:21]} Nc6 {[%emt 0:03:11]} 10. N2f3 {[%emt 0:00:32]} d6 {[%emt 0:02:16]} 11. Bb2 {[%emt 0:01:09]} Bd7 {[%emt 0:00:17]} 12. Rc1 {[%emt 0:00:52]} Rac8 {[%emt 0:03:41]} 13. a3 {[%emt 0:13:05]} Qb8 {[%emt 0:03:06]} 14. b4 {[%emt 0:08:26]} Rfd8 {[%emt 0:03:21]} 15. Nb3 {[%emt 0:02:36]} Be8 {[%emt 0:04:28]} 16. e3 {[%emt 0:10:16]} b5 {[%emt 0:25:21]} 17. cxb5 {[%emt 0:05:09]} axb5 {[%emt 0:03:01]} 18. Qe2 {[%emt 0:01:18]} d5 {[%emt 0:08:20]} 19. Rfd1 {[%emt 0:05:32]} Ne4 {[%emt 0:03:13]} 20. Nfd2 {[%emt 0:07:02]} Nd6 {[%emt 0:00:24]} 21. Qg4 {[%emt 0:02:12]} Bf8 {[%emt 0:00:16]} 22. Nc5 {[%emt 0:04:54]} Nc4 {[%emt 0:00:30]} 23. Nxc4 {[%emt 0:07:49]} bxc4 {[%emt 0:03:32]} 24. Bf6 {[%emt 0:09:50]} Ne5 {[%emt 0:00:37]} 25. Qg5 {[%emt 0:01:36]} h6 {[%emt 0:00:01]} 26. Qxe5 {[%emt 0:02:20]} gxf6 {[%emt 0:00:01]} 27. Qxf6 {[%emt 0:01:32]} Bg7 {[%emt 0:00:01]} 28. Qh4 {[%emt 0:01:02]} Qb6 {[%emt 0:02:05]} 29. e4 {[%emt 0:03:12]} dxe4 {[%emt 0:00:40]} 30. Bxe4 {[%emt 0:01:57]} c3 {[%emt 0:03:30]} 31. g4 {[%emt 0:02:40]} Rd6 {[%emt 0:01:58]} 32. Qe7 {[%emt 0:01:52]} Rcd8 {[%emt 0:01:42]} 33. Bc2 {[%emt 0:01:29]} Bb5 {[%emt 0:00:29]} 34. Ne4 {[%emt 0:01:03]} Rd4 {[%emt 0:00:33]} 35. h3 {[%emt 0:00:30]} Bc6 {[%emt 0:00:34]} 36. Nf6+ {[%emt 0:00:35]} Bxf6 {[%emt 0:00:26]} 37. Qxf6 {[%emt 0:00:05]} Rd2 {[%emt 0:00:08]} 38. g5 {[%emt 0:00:52]} hxg5 {[%emt 0:00:37]} 39. Qxg5+ {[%emt 0:00:06]} Kf8 {[%emt 0:00:06]} 40. Qh6+ {[%emt 0:01:00]} Ke7 {[%emt 0:01:13]} 41. Qg5+ {[%emt 0:06:06]} Kf8 {[%emt 0:06:30]} 42. Qh6+ {[%emt 0:00:32]} Ke8 {[%emt 0:01:20]} 43. Qf6 {[%emt 0:08:23]} Qd4 {[%emt 0:18:03]} 44. Qxd4 {[%emt 0:01:59]} R8xd4 {[%emt 0:00:01]} 45. Bb3 {[%emt 0:12:45]} R4d3 {[%emt 0:02:09]} 46. Kf1 {[%emt 0:00:08]} Bb5 {[%emt 0:00:59]} 47. a4 {[%emt 0:01:21]} Rxd1+ {[%emt 0:00:32]} 0-1